[Event "Qatar Masters 2024"]
[Site "Doha"]
[Date "2024.12.03"]
[Round "1.40"]
[White "Kazhgaleyev, Murtas"]
[Black "Sriansh Das"]
[Result "1-0"]
[Annotator "RC"]
[ECO "D28"]
[WhiteElo "2488"]
[BlackElo "2315"]
[PlyCount "105"]
[EventDate "2024.11.24"]
[EventType "swiss"]
[EventCountry "QAT"]
[SourceTitle "playchess.com"]
[Source "ChessBase"]
[SourceQuality "1"]
[TimeControl "40/5400+30:1800+30"]

1. Nf3 {[%emt 0:00:06]} d5 {[%emt 0:00:20]} 2. e3 {[%emt 0:00:10]} Nf6 {[%emt 0:00:33]} 3. c4 {[%emt 0:01:17]} dxc4 {[%emt 0:02:38]} 4. Bxc4 {[%emt 0:01:08]} e6 {[%emt 0:00:09]} 5. O-O {[%emt 0:00:28]} c5 {[%emt 0:00:46]} 6. Qe2 {[%emt 0:01:48]} a6 {[%emt 0:02:54]} 7. Rd1 {[%emt 0:02:39]} Nc6 {[%emt 0:15:04]} 8. d4 {[%emt 0:01:12]} Qc7 {[%emt 0:01:53]} 9. Nc3 {[%emt 0:06:13]} Be7 {[%emt 0:03:13]} 10. dxc5 {[%emt 0:13:40]} Bxc5 {[%emt 0:00:35]} 11. h3 {[%emt 0:06:38]} O-O {[%emt 0:01:08]} 12. e4 {[%emt 0:02:01]} Nh5 {[%emt 0:23:19]} 13. Be3 {[%emt 0:07:13]} Nf4 {[%emt 0:02:30]} 14. Qd2 {[%emt 0:03:29]} Bxe3 {[%emt 0:00:21]} 15. Qxe3 {[%emt 0:00:04]} b5 {[%emt 0:01:06]} 16. Bf1 {[%emt 0:02:16]} Bb7 {[%emt 0:01:36]} 17. a4 {[%emt 0:02:19]} b4 {[%emt 0:02:01]} 18. Nb1 {[%emt 0:02:52]} e5 {[%emt 0:11:06]} 19. Nbd2 {[%emt 0:02:22]} Rad8 {[%emt 0:09:02]} 20. Nb3 {[%emt 0:02:15]} Ne6 {[%emt 0:05:10]} 21. Rdc1 {[%emt 0:06:01]} Qe7 {[%emt 0:03:13]} 22. Rc4 {[%emt 0:11:36]} Rd6 {[%emt 0:01:58]} 23. Rac1 {[%emt 0:00:09]} Rfd8 {[%emt 0:00:14]} 24. Nc5 {[%emt 0:00:45]} Ned4 {[%emt 0:04:33]} 25. Nxd4 {[%emt 0:01:38]} exd4 {[%emt 0:00:57]} 26. Qf4 {[%emt 0:01:10]} Rf6 {[%emt 0:02:16]} 27. Qh4 {[%emt 0:01:23]} Ne5 {[%emt 0:00:26]} 28. Nxb7 {[%emt 0:04:13]} Nf3+ {[%emt 0:01:32]} 29. gxf3 {[%emt 0:00:34]} Rg6+ {[%emt 0:00:04]} 30. Qg4 {[%emt 0:02:35]} Rxg4+ {[%emt 0:01:38]} 31. hxg4 {[%emt 0:00:07]} Qxb7 {[%emt 0:00:13]} 32. Rc7 {[%emt 0:00:06]} Qa8 {[%emt 0:01:00]} 33. Bc4 {[%emt 0:00:32]} Rf8 {[%emt 0:01:28]} 34. Bxf7+ {[%emt 0:00:53]} Kh8 {[%emt 0:00:33]} 35. Be6 {[%emt 0:00:19]} d3 {[%emt 0:00:24]} 36. Rd1 {[%emt 0:03:25]} Qb8 {[%emt 0:01:46]} 37. Rc6 {[%emt 0:01:05]} Rd8 {[%emt 0:00:38]} 38. Kg2 {[%emt 0:04:26]} Qe5 {[%emt 0:00:44]} 39. Rxd3 {[%emt 0:00:28]} Rf8 {[%emt 0:00:10]} 40. b3 {[%emt 0:00:57]} a5 {[%emt 0:00:38]} 41. Rd5 {[%emt 0:34:13]} Qf4 {[%emt 0:01:13]} 42. Rf5 {[%emt 0:00:00]} Rxf5 {[%emt 0:00:05]} 43. exf5 {[%emt 0:00:00]} h5 {[%emt 0:03:48]} 44. Rc8+ {[%emt 0:00:00]} Kh7 {[%emt 0:00:02]} 45. Bg8+ {[%emt 0:00:00]} Kh8 {[%emt 0:00:29]} 46. Bf7+ {[%emt 0:00:00]} Kh7 {[%emt 0:01:57]} 47. Bxh5 {[%emt 0:00:00]} Qd2 {[%emt 0:01:44]} 48. Bf7 {[%emt 0:00:00]} Kh6 {[%emt 0:02:33]} 49. Bc4 {[%emt 0:00:00]} Kg5 {[%emt 0:01:10]} 50. Rc5 {[%emt 0:00:00]} Qd8 {[%emt 0:03:07]} 51. Rd5 {[%emt 0:00:00]} Qc7 {[%emt 0:03:11]} 52. f6+ {[%emt 0:00:00]} Kxf6 {[%emt 0:00:25]} 53. Rf5+ {[%emt 0:00:00]} 1-0

[Event "Qatar Masters 2024"]
[Site "Doha"]
[Date "2024.12.03"]
[Round "1.41"]
[White "Ezat, Mohamed"]
[Black "Srihari L R"]
[Result "0-1"]
[Annotator "TA"]
[ECO "A40"]
[WhiteElo "2312"]
[BlackElo "2484"]
[PlyCount "74"]
[EventDate "2024.11.24"]
[EventType "swiss"]
[EventCountry "QAT"]
[SourceTitle "playchess.com"]
[Source "ChessBase"]
[SourceQuality "1"]
[TimeControl "40/5400+30:1800+30"]

{[%evp 10,74,0,0,0,0,0,0,24,-25,-13,-28,-38,-36,-26,-11,-4,-78,-73,-67,-79,-88,-95,-106,-43,-62,-13,-109,-110,-109,-113,-129,-120,-125,-125,-100,-77,-243,-238,-287,-272,-364,-387,-422,-422,-539,-443,-614,-419,-582,-437,-572,-568,-564,-543,-697,-730,-742,-737,-891,-922,-914,-884,-874,-931,-5265,-1219]} 1. d4 {[%emt 0:00:51]} e6 {[%emt 0:00:16]} 2. c4 {[%emt 0:01:01]} b6 {[%emt 0:00:13]} 3. Nc3 {[%emt 0:01:56]} Bb4 {[%emt 0:01:01]} 4. e4 {[%emt 0:06:49]} Bb7 {[%emt 0:00:12]} 5. Qc2 {[%emt 0:00:09]} Qh4 {[%emt 0:01:05]} 6. Bd3 {[%emt 0:04:01]} Bxc3+ {[%emt 0:00:07]} 7. bxc3 {[%emt 0:04:26]} f5 $1 {[%emt 0:01:00]} 8. g3 $1 {[%emt 0:01:02]} (8. exf5 $2 {perishes.} Bxg2 $19) 8... Qh5 {[%emt 0:00:03] The position is equal.} 9. Be2 {[%emt 0:01:43]} (9. f3 $142) 9... Qf7 $11 {[%emt 0:00:06]} 10. Bf3 {[%emt 0:00:19]} fxe4 {[%emt 0:03:13]} 11. Bxe4 {[%emt 0:00:12]} Bxe4 {[%emt 0:00:50]} 12. Qxe4 {[%emt 0:00:15]} Nc6 {[%emt 0:00:11]} 13. Ba3 {[%emt 0:15:38]} (13. Qe2 $11) 13... Nf6 $36 {[%emt 0:05:48][%mdl 2048] Black is in control.} 14. Qe2 {[%emt 0:00:51]} Qg6 {[%emt 0:25:23]} 15. Nf3 {[%emt 0:24:20]} Qe4 {[%emt 0:02:37]} 16. Bb4 {[%emt 0:03:36] [#]} a5 {[%emt 0:09:32]} (16... d6 $1 $17 17. Rf1 O-O) 17. Ba3 $15 {[%emt 0:00:08]} a4 {[%emt 0:00:06]} (17... d6 $15 {might be stronger.} 18. Rd1 Kd7) 18. Bb4 {[%emt 0:00:21] White is weak on the light squares} (18. Qxe4 $11 {keeps the balance.} Nxe4 19. Nd2) 18... Nxb4 $17 {[%emt 0:04:45]} 19. cxb4 {[%emt 0:02:11]} O-O {[%emt 0:00:07]} 20. a3 {[%emt 0:10:13]} d5 {[%emt 0:02:09] Black has more active pieces.} 21. c5 {[%emt 0:06:56]} bxc5 {[%emt 0:07:52]} 22. dxc5 {[%emt 0:00:45]} Rae8 {[%emt 0:00:57]} 23. h3 $2 {[%emt 0:05:56] This costs White the game.} (23. Qe3 $17) 23... e5 $19 {[%emt 0:01:38]} 24. Rf1 {[%emt 0:06:28]} Qf5 {[%emt 0:04:18]} 25. Nh4 {[%emt 0:01:37]} Qxh3 {[%emt 0:00:50]} 26. O-O-O {[%emt 0:00:04]} Ne4 {[%emt 0:01:35]} 27. Kb2 {[%emt 0:00:33]} c6 {[%emt 0:00:45]} 28. Rde1 {[%emt 0:01:23]} Qe6 {[%emt 0:01:14]} 29. g4 {[%emt 0:00:26]} g6 {[%emt 0:00:49][%cal Od5d4] Black is clearly winning.} 30. Ka1 {[%emt 0:00:17]} Qf6 {[%emt 0:01:18]} 31. Ng2 {[%emt 0:00:04]} Qf3 {[%emt 0:01:56]} 32. Ne3 {[%emt 0:00:01]} Qxe2 {[%emt 0:01:10]} 33. Rxe2 {[%emt 0:00:01]} d4 {[%emt 0:00:36]} 34. Nc4 {[%emt 0:00:05]} Ng3 {[%emt 0:00:04]} 35. Rfe1 {[%emt 0:00:04]} Nxe2 {[%emt 0:00:06]} 36. Rxe2 {[%emt 0:00:00]} e4 {[%emt 0:00:27]} 37. Nd6 {[%emt 0:00:44] [#]} e3 $1 {[%emt 0:00:13] Weighted Error Value: White=0.79/Black=0.25 (precise) .  Loses game:     	White=1     	---        Mistake:       	White=3     	Black=2      Inaccurate:     	White=4     	Black=1      OK:         	White=3     	Black=10     Best:        	White=2     	Black=5      Strong:       	White=1     	Black=1} 0-1

[Event "Qatar Masters 2024"]
[Site "Doha"]
[Date "2024.12.03"]
[Round "1.42"]
[White "Chanda, Sandipan"]
[Black "Priansh Das"]
[Result "1/2-1/2"]
[Annotator "TA"]
[ECO "E73"]
[WhiteElo "2480"]
[BlackElo "2311"]
[PlyCount "55"]
[EventDate "2024.11.24"]
[EventType "swiss"]
[EventCountry "QAT"]
[SourceTitle "playchess.com"]
[Source "ChessBase"]
[SourceQuality "1"]
[TimeControl "40/5400+30:1800+30"]

{[%evp 14,55,21,24,29,24,70,55,47,0,25,0,13,-16,0,-58,0,0,6,-15,-28,-46,-53,-46,-52,-71,26,-91,-92,-92,-92,-76,-74,-99,0,0,-7,-22,0,0,0,-34,7,0]} 1. d4 {[%emt 0:00:06]} Nf6 {[%emt 0:00:09]} 2. c4 {[%emt 0:00:11]} g6 {[%emt 0:00:07]} 3. Nc3 {[%emt 0:00:07]} Bg7 {[%emt 0:00:06]} 4. e4 {[%emt 0:00:15]} d6 {[%emt 0:00:06]} 5. Be2 {[%emt 0:00:19]} O-O {[%emt 0:00:10]} 6. h4 {[%emt 0:00:11][%cal Bh2h4,Bh4h5,Bh5h6][%mdl 32]} c5 {[%emt 0:00:43]} 7. d5 {[%emt 0:00:10]} e6 {[%emt 0:01:11]} 8. h5 {[%emt 0:00:37]} exd5 {[%emt 0:00:15]} 9. exd5 {[%emt 0:00:42]} Qb6 {[%emt 0:05:14]} (9... Re8 $11 {was preferrable.}) 10. h6 {[%emt 0:03:53]} Bh8 {[%emt 0:00:47] White is slightly better.} 11. Nf3 {[%emt 0:01:42]} Bg4 {[%emt 0:04:04]} 12. Ng5 {[%emt 0:03:04]} Bxe2 {[%emt 0:02:52]} 13. Qxe2 {[%emt 0:00:09]} Nbd7 {[%emt 0:01:07]} 14. Be3 {[%emt 0:02:54]} (14. Kf1 $11) 14... Qa5 {[%emt 0:06:22]} (14... Ne5 $1 $15) 15. O-O {[%emt 0:03:47]} Rae8 {[%emt 0:04:45]} 16. Nb5 {[%emt 0:15:08]} Qb6 {[%emt 0:09:04]} 17. a4 {[%emt 0:00:27] aiming for a5.} Ne5 $1 {[%emt 0:02:14]} 18. a5 {[%emt 0:13:23]} Qd8 {[%emt 0:02:37]} 19. Nxa7 {[%emt 0:02:32] [#]} Nfg4 {[%emt 0:02:37]} (19... Neg4 $1 $17 {[%cal Rg4e3] White must now prevent ...Nxe3!} 20. Ra3 Nxe3 21. Rxe3 Qxa5) 20. a6 {[%emt 0:01:09]} (20. Bf4 $11 {keeps the balance.}) 20... bxa6 {[%emt 0:23:06]} (20... Nxe3 {is interesting.} 21. Qxe3 bxa6 22. Qf4 Qb6) 21. Rxa6 {[%emt 0:00:36]} Nxe3 $1 {[%emt 0:05:59]} 22. Qxe3 {[%emt 0:00:08]} Nxc4 {[%emt 0:00:37]} 23. Qf4 {[%emt 0:01:52]} Nxb2 {[%emt 0:08:54]} ({Black should try} 23... Be5 $17 24. Qg4 Bxb2) 24. Nf3 $1 $11 {[%emt 0:19:47]} (24. Rxd6 Be5 25. Rxd8 Bxf4 26. Rxe8 Rxe8) 24... Nd3 {[%emt 0:05:31]} 25. Qc4 {[%emt 0:02:08]} Nb2 {[%emt 0:10:56]} 26. Qf4 {[%emt 0:04:57]} Nd3 {[%emt 0:00:23]} 27. Qc4 {[%emt 0:00:31]} Nb2 {[%emt 0:00:38]} 28. Qf4 {Weighted Error Value: White=0.20 (precise) /Black=0.23 (precise) .  Mistake:       	White=2     	Black=4      Inaccurate:     	White=1     	Black=1      OK:         	White=5     	Black=7      Best:        	---       	Black=1      Strong:       	White=1     	Black=2} 1/2-1/2

[Event "Qatar Masters 2024"]
[Site "Doha"]
[Date "2024.12.03"]
[Round "1.43"]
[White "Jin, Yueheng"]
[Black "Kukhmazov, Arsen"]
[Result "1/2-1/2"]
[Annotator "TA"]
[ECO "E05"]
[WhiteElo "2309"]
[BlackElo "2480"]
[PlyCount "81"]
[EventDate "2024.11.24"]
[EventType "swiss"]
[EventCountry "QAT"]
[SourceTitle "playchess.com"]
[Source "ChessBase"]
[SourceQuality "1"]
[TimeControl "40/5400+30:1800+30"]

{[%evp 15,81,23,32,39,36,35,43,0,0,0,0,0,0,0,0,0,0,0,0,0,0,0,0,0,4,0,0,0,6,0,0,0,8,0,3,0,0,0,0,0,0,0,0,0,0,0,0,0,0,0,0,0,0,0,0,0,0,0,0,0,0,0,0,0,0,0,0,0]} 1. c4 {[%emt 0:00:04]} e6 {[%emt 0:00:20]} 2. g3 {[%emt 0:00:05]} d5 {[%emt 0:00:05]} 3. Bg2 {[%emt 0:00:04]} Nf6 {[%emt 0:00:09]} 4. Nf3 {[%emt 0:00:06]} Be7 {[%emt 0:01:11]} 5. O-O {[%emt 0:00:20][%cal Bh1f1,Bf1d1,Bd1d4][%mdl 32]} O-O {[%emt 0:00:04]} 6. d4 {[%emt 0:00:26]} dxc4 {[%emt 0:00:06]} 7. Qc2 {[%emt 0:00:05]} a6 {[%emt 0:01:04]} 8. a4 {[%emt 0:00:05]} b6 {[%emt 0:00:26]} 9. Ne5 {[%emt 0:05:00]} Ra7 {[%emt 0:00:17]} 10. Rd1 {[%emt 0:02:33]} Bb7 {[%emt 0:00:11]} 11. Bxb7 {[%emt 0:12:04] White is slightly better.} ({Much weaker is} 11. Nxc4 Bxg2 12. Kxg2 Nc6 $11) 11... Rxb7 {[%emt 0:00:50] The position is equal.} 12. Qxc4 {[%emt 0:00:36]} c5 {[%emt 0:00:05]} 13. Nc3 {[%emt 0:00:39]} cxd4 {[%emt 0:00:06]} 14. Rxd4 {[%emt 0:03:03]} Qc8 {[%emt 0:00:22]} 15. Qxc8 {[%emt 0:09:53]} Rxc8 {[%emt 0:00:20]} 16. Be3 {[%emt 0:29:23]} Nbd7 {[%emt 0:09:58]} 17. Nxd7 {[%emt 0:01:53]} Rxd7 {[%emt 0:06:26]} 18. Rxd7 {[%emt 0:03:53]} Nxd7 {[%emt 0:00:08]} 19. Rd1 {[%emt 0:00:59]} Nc5 {[%emt 0:05:31]} 20. Rd4 {[%emt 0:01:10]} f5 {[%emt 0:18:06]} 21. Rc4 {[%emt 0:00:44] [#] Black must now prevent b4.} a5 {[%emt 0:02:29]} 22. Bd4 {[%emt 0:02:36]} Kf7 {[%emt 0:02:58]} 23. Kg2 {[%emt 0:04:09]} h5 {[%emt 0:06:50]} 24. h4 {[%emt 0:00:30]} g6 {[%emt 0:00:05]} 25. Na2 {[%emt 0:06:58]} Rd8 {[%emt 0:02:51]} 26. Nc1 {[%emt 0:01:11]} Rd5 {[%emt 0:05:29]} 27. f4 {[%emt 0:03:17]} Bd6 {[%emt 0:15:22]} 28. Nd3 {[%emt 0:03:17]} Nxd3 {[%emt 0:02:50]} 29. exd3 {[%emt 0:00:33]} Bc5 {[%emt 0:11:33]} 30. Bxc5 {[%emt 0:00:01]} bxc5 $11 {[%emt 0:00:01][%mdl 4096] Endgame. KR-KR} 31. Rc3 {[%emt 0:02:00]} Ke7 {[%emt 0:02:00]} 32. Rb3 {[%emt 0:01:42]} Rd4 {[%emt 0:00:34]} 33. Rb5 {[%emt 0:00:03][%csl LRa5,LRc5]} Rxa4 {[%emt 0:04:46] [#] aiming for ...Kd6.} 34. Rxc5 {[%emt 0:00:01]} Ra2 {[%emt 0:00:02]} 35. Rb5 {[%emt 0:00:53]} a4 {[%emt 0:01:06] Threatens to win with ...a3.} 36. Kf3 {[%emt 0:00:06]} a3 {[%emt 0:00:10]} 37. bxa3 {[%emt 0:00:05]} Rxa3 {[%emt 0:00:02]} 38. Ke3 {[%emt 0:00:17]} Ra1 {[%emt 0:00:04]} 39. Rb7+ {[%emt 0:00:05]} Kf6 {[%emt 0:00:04]} 40. Rb6 {[%emt 0:00:10]} Rg1 {[%emt 0:00:04]} 41. Kf2 {[%emt 0:00:25] Weighted Error Value: White=0.03 (flawless) /Black=0.01 (flawless) .  Inaccurate:     	White=1     	---        OK:         	White=14    	Black=20     Best:        	White=2     	Black=1} 1/2-1/2

[Event "Qatar Masters 2024"]
[Site "Doha"]
[Date "2024.12.03"]
[Round "1.44"]
[White "Saydaliev, Saidakbar"]
[Black "Jain Kashish Manoj"]
[Result "1/2-1/2"]
[Annotator "TA"]
[ECO "A11"]
[WhiteElo "2473"]
[BlackElo "2308"]
[PlyCount "88"]
[EventDate "2024.11.24"]
[EventType "swiss"]
[EventCountry "QAT"]
[SourceTitle "playchess.com"]
[Source "ChessBase"]
[SourceQuality "1"]
[TimeControl "40/5400+30:1800+30"]

{[%evp 38,88,-26,-32,-21,-34,-22,-27,0,-39,-20,-16,-8,-19,0,0,0,-67,0,-27,-19,-59,0,0,88,0,0,0,26,22,79,89,115,115,115,89,97,97,205,43,27,-622,-613,-777,-757,-738,-680,-903,-368,-328,-222,-214,-206]} 1. Nf3 {[%emt 0:00:05]} d5 {[%emt 0:00:12]} 2. g3 {[%emt 0:01:30]} Nf6 {[%emt 0:00:26]} 3. c4 {[%emt 0:01:07]} c6 {[%emt 0:00:54]} 4. Bg2 {[%emt 0:00:53]} dxc4 {[%emt 0:00:26]} 5. O-O {[%emt 0:04:16]} Nbd7 {[%emt 0:01:23]} 6. Qc2 {[%emt 0:02:09]} Nb6 {[%emt 0:00:14] A11: English Opening: 1...c6.} 7. b3 {[%emt 0:00:15]} cxb3 {[%emt 0:08:31]} 8. axb3 {[%emt 0:00:08]} Bg4 {[%emt 0:02:34]} 9. Ne5 $146 {[%emt 0:01:09]} ({Predecessor:} 9. Bb2 e6 10. d4 Bf5 11. Qc1 Be7 12. Nbd2 Ne4 13. Nc4 O-O 14. Ne3 Bg6 15. Ne5 {1-0 Chan,P (2158)-Spiess,T (1986) WchT Seniors 50 2018 (1.7)}) 9... Qc8 {[%emt 0:20:07]} 10. Nxg4 {[%emt 0:08:28]} Qxg4 {[%emt 0:00:06]} 11. e4 {[%emt 0:00:47]} Qd7 {[%emt 0:13:41]} 12. Bb2 {[%emt 0:09:45]} e6 {[%emt 0:05:00]} 13. d4 {[%emt 0:03:26]} Be7 {[%emt 0:01:34]} 14. Nd2 {[%emt 0:02:40]} O-O {[%emt 0:00:08]} 15. Rfd1 {[%emt 0:00:08]} Rfd8 {[%emt 0:06:59]} 16. Nf1 {[%emt 0:02:19]} Ne8 {[%emt 0:08:35]} 17. Ne3 {[%emt 0:01:49]} Nc7 {[%emt 0:00:20]} 18. h4 {[%emt 0:06:44]} Bf8 {[%emt 0:08:26]} 19. h5 {[%emt 0:03:29]} h6 {[%emt 0:04:14]} 20. f4 {[%emt 0:17:12]} Nb5 {[%emt 0:01:46]} 21. Kh2 {[%emt 0:04:46]} Qe7 {[%emt 0:02:16]} 22. Qe2 {[%emt 0:03:00]} Rd7 {[%emt 0:05:25]} 23. Rd3 {[%emt 0:05:22]} Rad8 {[%emt 0:01:13]} 24. Rad1 {[%emt 0:00:07]} Qe8 {[%emt 0:06:14]} 25. Ng4 {[%emt 0:08:22]} c5 {[%emt 0:01:31]} 26. d5 $1 {[%emt 0:04:34]} exd5 {[%emt 0:00:39]} 27. Bf6 {[%emt 0:03:57] [#]} (27. Nxh6+ $11 Kh8 (27... gxh6 28. Qg4+ Kh7 29. Qf5+ Kg8 30. Qg4+ Kh7 31. Qf5+ Kg8 32. Qg4+ $11) 28. Nf5) 27... Nd4 {[%emt 0:00:35]} (27... gxf6 28. Nxf6+ Kh8 29. Qg4 $18 (29. Nxe8 Rxe8 30. Qa2 f5 $18)) (27... c4 $1 $15 28. R3d2 d4 (28... gxf6 $2 29. Nxf6+ Kh8 30. Qg4 $18) 29. Nxh6+ (29. Bxd8 Rxd8 30. Qf3 a5 $17) 29... Kh8 (29... gxh6 30. Qg4+ Kh7 31. Qf5+ Kg8 32. Qxb5 $14)) 28. Bxd4 {[%emt 0:04:38]} cxd4 {[%emt 0:00:01]} (28... dxe4 $2 29. Nf6+ gxf6 30. Qg4+ Kh7 31. Qf5+ Kg8 32. Bxe4 $18 (32. Qxe4 $2 Qxe4 33. Bxe4 Rxd4 $19) (32. Qxe4 $2 Qxe4 33. Bxe4 Rxd4 $19)) 29. e5 {[%emt 0:00:05]} Rc7 {[%emt 0:00:46]} (29... Bc5 $15) 30. Rxd4 $11 {[%emt 0:00:49]} Rdc8 {[%emt 0:00:01]} (30... Bc5 $11 31. R4d3 a5) 31. R1d2 {[%emt 0:00:51]} (31. Bxd5 $6 Rc2 32. R1d2 Rxd2 33. Qxd2 (33. Rxd2 Nxd5 34. Rxd5 Rc1 $11) 33... Bc5 $11) (31. Ne3 $1 $16) 31... Bc5 {[%emt 0:00:43]} 32. R4d3 {[%emt 0:00:00]} Bb4 {[%emt 0:00:14]} 33. Ra2 {[%emt 0:00:05]} a6 {[%emt 0:00:53]} (33... Rc3 $1 $11 {keeps the balance.}) 34. Ne3 $16 {[%emt 0:00:12]} (34. Bxd5 Nxd5 35. Rxd5 Qe6 $15) 34... Rc3 {[%emt 0:00:48]} 35. Rxc3 {[%emt 0:02:01]} (35. Bxd5 Nxd5 36. Nxd5 Rxd3 37. Qxd3 Bf8) (35. Nxd5 Rxd3 36. Qxd3 Rd8 $11) 35... Rxc3 {[%emt 0:00:01]} 36. Nxd5 {[%emt 0:00:07]} (36. Bxd5 $2 Bc5 37. Nd1 Nxd5 $17) 36... Nxd5 {[%emt 0:00:03]} 37. Bxd5 {[%emt 0:00:01]} Qe7 {[%emt 0:01:29]} (37... a5 $16) 38. Bc4 $2 {[%emt 0:00:57]} ({White should play} 38. Qe4 $1 $18) 38... b5 $14 {[%emt 0:00:30] [#]} 39. Qe4 $2 {[%emt 0:01:15][%mdl 8192]} (39. Bd5 $1 $11 Rc5 (39... Qc5 40. Bf3) 40. Be4) 39... bxc4 $19 {[%emt 0:00:21]} 40. Rxa6 {[%emt 0:00:02]} Qd7 {[%emt 0:00:30]} (40... Rxb3 $2 41. Ra8+ $18 (41. Qxc4 $2 Rb2+ 42. Kh3 Qd7+ 43. e6 fxe6 $19) (41. Qxc4 $2 Rb2+ 42. Kh3 Qd7+ 43. e6 fxe6 $19)) 41. Ra8+ {[%emt 0:30:56]} Bf8 {[%emt 0:30:01]} 42. bxc4 {[%emt 0:00:00]} Rd3 {[%emt 0:00:00]} ({Worse is} 42... Qg4 43. Rxf8+ Kxf8 44. Qa8+ Ke7 45. Qb7+ Kd8 46. Qa8+ Kc7 (46... Ke7 47. Qb7+ Ke8 48. Qb8+ Kd7 49. Qb5+ Kc8 50. Qc5+ Kb7 51. Qb4+ Kc8 52. Qxc3 $14) 47. Qa5+ Kc6 48. Qb5+ (48. Qxc3 Qxh5+ 49. Kg1 Qe2 $11) 48... Kc7 49. Qa5+ Kc6 50. Qb5+ (50. Qxc3 Qxh5+ 51. Kg2 Qe2+ 52. Kg1 g6 $11) 50... Kc7 51. Qc5+ Kd7 52. Qd4+ Kc6 53. Qxc3 $11) (42... Qd1 $142 43. Rxf8+ Kxf8 44. Qa8+ Ke7 45. Qb7+ Ke6 46. f5+ Kxe5 47. Qe7+ Kxf5 48. Qxf7+ Ke4 49. Qb7+ Kd3 50. Qd7+ Kc2 (50... Kxc4 $2 51. Qxd1 Kb5 52. Qb1+ Kc6 53. Qe4+ Kb5 54. Qb7+ Ka5 55. Qxg7 $18)) 43. f5 $19 {[%emt 0:00:00]} Rd2+ {[%emt 0:00:00]} 44. Kh3 {[%emt 0:00:00] [#]} Qe7 $1 {[%emt 0:01:14]} 1/2-1/2